{"text_format":"3","workbook":"xlsx","n_sheets":3,"sheets":["Päivittäinen aikataulu","Tapahtumien ajoitus","Aikavälit"],"not_rendered":{"defined_names":21},"read":"whole","date_system":"1900"}

{"sheet":"Päivittäinen aikataulu","index":0,"n_rows":76,"n_cols":13,"rows_kept":76,"merged":[[0,1,0,2],[1,1,5,2],[2,12,4,12],[3,7,4,7],[5,12,7,12],[6,1,8,2],[8,12,10,12],[9,7,10,7],[10,1,10,2],[11,12,13,12],[14,12,16,12],[15,7,16,7],[17,12,19,12],[18,1,18,2],[20,12,22,12],[21,7,22,7],[23,12,25,12],[24,1,24,2],[25,1,25,2],[26,7,27,7],[26,12,28,12],[29,12,31,12],[31,7,32,7],[32,12,34,12]]}
[null,"Päivittäinen aikataulu"]
[null,{"$f":"IFERROR(DAY(PäivämääränArvo),\"\")","v":21},null,null,"Aika",{"$f":"IFERROR(UPPER(TEXT(DATE(RaportinVuosi,KuukaudenNumero,RaportinPäivä),\"p kkkk vvvv\")),\"\")","v":"21 KESÄKUU 2022"},null,"VIIKKO YHDELLÄ VILKAISULLA",{"$nulls":3},"MUISTIINPANOT/TEHTÄVÄLUETTELO"]
[{"$nulls":4},"Aika","Kuvaus",null,{"$f":"IFERROR(TEXT(DATEVALUE(PäivämääränArvo)+1,\"pppp\"),\"\")","v":"keskiviikko"},{"$f":"IFERROR(INDEX(TapahtumienAjoitus[],MATCH($H$6&\"|\"&ROW(A1),TapahtumienAjoitus[YKSILÖIVÄ ARVO (LASKETTU)],0),2),\"\")","v":""},{"$f":"IFERROR(INDEX(TapahtumienAjoitus[],MATCH($H$6&\"|\"&ROW(A1),TapahtumienAjoitus[YKSILÖIVÄ ARVO (LASKETTU)],0),3),\"\")","v":""},null,null,"Hae pyykit pesulasta"]
[{"$nulls":4},{"$f":"Aikavälit!E3","v":"06:00:00"},{"$f":"IFERROR(INDEX(TapahtumienAjoitus[],MATCH(DATEVALUE(PäivämääränArvo)&PäivittäinenAikataulu[[#This Row],[Aika]],HakupäiväJaAika,0),3),\"\")","v":"Herätys"},null,{"$f":"IFERROR(TEXT(DATEVALUE(PäivämääränArvo)+1,\"p\"),\"\")","v":"22"},{"$f":"IFERROR(INDEX(TapahtumienAjoitus[],MATCH($H$6&\"|\"&ROW(A2),TapahtumienAjoitus[YKSILÖIVÄ ARVO (LASKETTU)],0),2),\"\")","v":"06:30:00"},{"$f":"IFERROR(INDEX(TapahtumienAjoitus[],MATCH($H$6&\"|\"&ROW(A2),TapahtumienAjoitus[YKSILÖIVÄ ARVO (LASKETTU)],0),3),\"\")","v":"Aamiainen"}]
[{"$nulls":4},{"$f":"Aikavälit!E4","v":"06:15:00"},{"$f":"IFERROR(INDEX(TapahtumienAjoitus[],MATCH(DATEVALUE(PäivämääränArvo)&PäivittäinenAikataulu[[#This Row],[Aika]],HakupäiväJaAika,0),3),\"\")","v":""},null,null,{"$f":"IFERROR(INDEX(TapahtumienAjoitus[],MATCH($H$6&\"|\"&ROW(A3),TapahtumienAjoitus[YKSILÖIVÄ ARVO (LASKETTU)],0),2),\"\")","v":""},{"$f":"IFERROR(INDEX(TapahtumienAjoitus[],MATCH($H$6&\"|\"&ROW(A3),TapahtumienAjoitus[YKSILÖIVÄ ARVO (LASKETTU)],0),3),\"\")","v":""}]
[{"$nulls":4},{"$f":"Aikavälit!E5","v":"06:30:00"},{"$f":"IFERROR(INDEX(TapahtumienAjoitus[],MATCH(DATEVALUE(PäivämääränArvo)&PäivittäinenAikataulu[[#This Row],[Aika]],HakupäiväJaAika,0),3),\"\")","v":"Suihku"},null,{"$f":"IFERROR(PäivämääränArvo+1,\"\")","v":"2022-06-22"},{"$f":"IFERROR(INDEX(TapahtumienAjoitus[],MATCH($H$6&\"|\"&ROW(A4),TapahtumienAjoitus[YKSILÖIVÄ ARVO (LASKETTU)],0),2),\"\")","v":""},{"$f":"IFERROR(INDEX(TapahtumienAjoitus[],MATCH($H$6&\"|\"&ROW(A4),TapahtumienAjoitus[YKSILÖIVÄ ARVO (LASKETTU)],0),3),\"\")","v":""},null,null,"Soita kaapeliyhtiöön"]
[null,{"$f":"IFERROR(TEXT(PäivämääränArvo,\"pppp\"),\"\")","v":"tiistai"},null,null,{"$f":"Aikavälit!E6","v":"06:45:00"},{"$f":"IFERROR(INDEX(TapahtumienAjoitus[],MATCH(DATEVALUE(PäivämääränArvo)&PäivittäinenAikataulu[[#This Row],[Aika]],HakupäiväJaAika,0),3),\"\")","v":""},null,null,{"$f":"IFERROR(INDEX(TapahtumienAjoitus[],MATCH($H$6&\"|\"&ROW(A5),TapahtumienAjoitus[YKSILÖIVÄ ARVO (LASKETTU)],0),2),\"\")","v":""},{"$f":"IFERROR(INDEX(TapahtumienAjoitus[],MATCH($H$6&\"|\"&ROW(A5),TapahtumienAjoitus[YKSILÖIVÄ ARVO (LASKETTU)],0),3),\"\")","v":""}]
[{"$nulls":4},{"$f":"Aikavälit!E7","v":"07:00:00"},{"$f":"IFERROR(INDEX(TapahtumienAjoitus[],MATCH(DATEVALUE(PäivämääränArvo)&PäivittäinenAikataulu[[#This Row],[Aika]],HakupäiväJaAika,0),3),\"\")","v":""},null,null,{"$f":"IFERROR(INDEX(TapahtumienAjoitus[],MATCH($H$6&\"|\"&ROW(A6),TapahtumienAjoitus[YKSILÖIVÄ ARVO (LASKETTU)],0),2),\"\")","v":""},{"$f":"IFERROR(INDEX(TapahtumienAjoitus[],MATCH($H$6&\"|\"&ROW(A6),TapahtumienAjoitus[YKSILÖIVÄ ARVO (LASKETTU)],0),3),\"\")","v":""}]
[{"$nulls":4},{"$f":"Aikavälit!E8","v":"07:15:00"},{"$f":"IFERROR(INDEX(TapahtumienAjoitus[],MATCH(DATEVALUE(PäivämääränArvo)&PäivittäinenAikataulu[[#This Row],[Aika]],HakupäiväJaAika,0),3),\"\")","v":""},null,{"$f":"IFERROR(TEXT(DATEVALUE(PäivämääränArvo)+2,\"pppp\"),\"\")","v":"torstai"},{"$f":"IFERROR(INDEX(TapahtumienAjoitus[],MATCH($H$12&\"|\"&ROW(A1),TapahtumienAjoitus[YKSILÖIVÄ ARVO (LASKETTU)],0),2),\"\")","v":""},{"$f":"IFERROR(INDEX(TapahtumienAjoitus[],MATCH($H$12&\"|\"&ROW(A1),TapahtumienAjoitus[YKSILÖIVÄ ARVO (LASKETTU)],0),3),\"\")","v":""}]
[{"$nulls":4},{"$f":"Aikavälit!E9","v":"07:30:00"},{"$f":"IFERROR(INDEX(TapahtumienAjoitus[],MATCH(DATEVALUE(PäivämääränArvo)&PäivittäinenAikataulu[[#This Row],[Aika]],HakupäiväJaAika,0),3),\"\")","v":"Lähtö töihin"},null,{"$f":"IFERROR(TEXT(DATEVALUE(PäivämääränArvo)+2,\"p\"),\"\")","v":"23"},{"$f":"IFERROR(INDEX(TapahtumienAjoitus[],MATCH($H$12&\"|\"&ROW(A2),TapahtumienAjoitus[YKSILÖIVÄ ARVO (LASKETTU)],0),2),\"\")","v":""},{"$f":"IFERROR(INDEX(TapahtumienAjoitus[],MATCH($H$12&\"|\"&ROW(A2),TapahtumienAjoitus[YKSILÖIVÄ ARVO (LASKETTU)],0),3),\"\")","v":""}]
[null,"NÄYTÄ AIKATAULU",null,null,{"$f":"Aikavälit!E10","v":"07:45:00"},{"$f":"IFERROR(INDEX(TapahtumienAjoitus[],MATCH(DATEVALUE(PäivämääränArvo)&PäivittäinenAikataulu[[#This Row],[Aika]],HakupäiväJaAika,0),3),\"\")","v":""},null,null,{"$f":"IFERROR(INDEX(TapahtumienAjoitus[],MATCH($H$12&\"|\"&ROW(A3),TapahtumienAjoitus[YKSILÖIVÄ ARVO (LASKETTU)],0),2),\"\")","v":""},{"$f":"IFERROR(INDEX(TapahtumienAjoitus[],MATCH($H$12&\"|\"&ROW(A3),TapahtumienAjoitus[YKSILÖIVÄ ARVO (LASKETTU)],0),3),\"\")","v":""}]
[{"$nulls":4},{"$f":"Aikavälit!E11","v":"08:00:00"},{"$f":"IFERROR(INDEX(TapahtumienAjoitus[],MATCH(DATEVALUE(PäivämääränArvo)&PäivittäinenAikataulu[[#This Row],[Aika]],HakupäiväJaAika,0),3),\"\")","v":"Vuoron alku"},null,{"$f":"IFERROR(PäivämääränArvo+2,\"\")","v":"2022-06-23"},{"$f":"IFERROR(INDEX(TapahtumienAjoitus[],MATCH($H$12&\"|\"&ROW(A4),TapahtumienAjoitus[YKSILÖIVÄ ARVO (LASKETTU)],0),2),\"\")","v":""},{"$f":"IFERROR(INDEX(TapahtumienAjoitus[],MATCH($H$12&\"|\"&ROW(A4),TapahtumienAjoitus[YKSILÖIVÄ ARVO (LASKETTU)],0),3),\"\")","v":""}]
[null,"Vuosi",null,null,{"$f":"Aikavälit!E12","v":"08:15:00"},{"$f":"IFERROR(INDEX(TapahtumienAjoitus[],MATCH(DATEVALUE(PäivämääränArvo)&PäivittäinenAikataulu[[#This Row],[Aika]],HakupäiväJaAika,0),3),\"\")","v":""},null,null,{"$f":"IFERROR(INDEX(TapahtumienAjoitus[],MATCH($H$12&\"|\"&ROW(A5),TapahtumienAjoitus[YKSILÖIVÄ ARVO (LASKETTU)],0),2),\"\")","v":""},{"$f":"IFERROR(INDEX(TapahtumienAjoitus[],MATCH($H$12&\"|\"&ROW(A5),TapahtumienAjoitus[YKSILÖIVÄ ARVO (LASKETTU)],0),3),\"\")","v":""}]
[{"$nulls":4},{"$f":"Aikavälit!E13","v":"08:30:00"},{"$f":"IFERROR(INDEX(TapahtumienAjoitus[],MATCH(DATEVALUE(PäivämääränArvo)&PäivittäinenAikataulu[[#This Row],[Aika]],HakupäiväJaAika,0),3),\"\")","v":""},null,null,{"$f":"IFERROR(INDEX(TapahtumienAjoitus[],MATCH($H$12&\"|\"&ROW(A6),TapahtumienAjoitus[YKSILÖIVÄ ARVO (LASKETTU)],0),2),\"\")","v":""},{"$f":"IFERROR(INDEX(TapahtumienAjoitus[],MATCH($H$12&\"|\"&ROW(A6),TapahtumienAjoitus[YKSILÖIVÄ ARVO (LASKETTU)],0),3),\"\")","v":""}]
[null,"Kuukausi",null,null,{"$f":"Aikavälit!E14","v":"08:45:00"},{"$f":"IFERROR(INDEX(TapahtumienAjoitus[],MATCH(DATEVALUE(PäivämääränArvo)&PäivittäinenAikataulu[[#This Row],[Aika]],HakupäiväJaAika,0),3),\"\")","v":""},null,{"$f":"IFERROR(TEXT(DATEVALUE(PäivämääränArvo)+3,\"pppp\"),\"\")","v":"perjantai"},{"$f":"IFERROR(INDEX(TapahtumienAjoitus[],MATCH($H$18&\"|\"&ROW(A1),TapahtumienAjoitus[YKSILÖIVÄ ARVO (LASKETTU)],0),2),\"\")","v":""},{"$f":"IFERROR(INDEX(TapahtumienAjoitus[],MATCH($H$18&\"|\"&ROW(A1),TapahtumienAjoitus[YKSILÖIVÄ ARVO (LASKETTU)],0),3),\"\")","v":""}]
[{"$nulls":4},{"$f":"Aikavälit!E15","v":"09:00:00"},{"$f":"IFERROR(INDEX(TapahtumienAjoitus[],MATCH(DATEVALUE(PäivämääränArvo)&PäivittäinenAikataulu[[#This Row],[Aika]],HakupäiväJaAika,0),3),\"\")","v":""},null,{"$f":"IFERROR(TEXT(DATEVALUE(PäivämääränArvo)+3,\"p\"),\"\")","v":"24"},{"$f":"IFERROR(INDEX(TapahtumienAjoitus[],MATCH($H$18&\"|\"&ROW(A2),TapahtumienAjoitus[YKSILÖIVÄ ARVO (LASKETTU)],0),2),\"\")","v":""},{"$f":"IFERROR(INDEX(TapahtumienAjoitus[],MATCH($H$18&\"|\"&ROW(A2),TapahtumienAjoitus[YKSILÖIVÄ ARVO (LASKETTU)],0),3),\"\")","v":""}]
[null,"Päivä",null,null,{"$f":"Aikavälit!E16","v":"09:15:00"},{"$f":"IFERROR(INDEX(TapahtumienAjoitus[],MATCH(DATEVALUE(PäivämääränArvo)&PäivittäinenAikataulu[[#This Row],[Aika]],HakupäiväJaAika,0),3),\"\")","v":""},null,null,{"$f":"IFERROR(INDEX(TapahtumienAjoitus[],MATCH($H$18&\"|\"&ROW(A3),TapahtumienAjoitus[YKSILÖIVÄ ARVO (LASKETTU)],0),2),\"\")","v":""},{"$f":"IFERROR(INDEX(TapahtumienAjoitus[],MATCH($H$18&\"|\"&ROW(A3),TapahtumienAjoitus[YKSILÖIVÄ ARVO (LASKETTU)],0),3),\"\")","v":""}]
[{"$nulls":4},{"$f":"Aikavälit!E17","v":"09:30:00"},{"$f":"IFERROR(INDEX(TapahtumienAjoitus[],MATCH(DATEVALUE(PäivämääränArvo)&PäivittäinenAikataulu[[#This Row],[Aika]],HakupäiväJaAika,0),3),\"\")","v":""},null,{"$f":"IFERROR(PäivämääränArvo+3,\"\")","v":"2022-06-24"},{"$f":"IFERROR(INDEX(TapahtumienAjoitus[],MATCH($H$18&\"|\"&ROW(A4),TapahtumienAjoitus[YKSILÖIVÄ ARVO (LASKETTU)],0),2),\"\")","v":""},{"$f":"IFERROR(INDEX(TapahtumienAjoitus[],MATCH($H$18&\"|\"&ROW(A4),TapahtumienAjoitus[YKSILÖIVÄ ARVO (LASKETTU)],0),3),\"\")","v":""}]
[null,"MUOKKAA AIKATAULUA",null,null,{"$f":"Aikavälit!E18","v":"09:45:00"},{"$f":"IFERROR(INDEX(TapahtumienAjoitus[],MATCH(DATEVALUE(PäivämääränArvo)&PäivittäinenAikataulu[[#This Row],[Aika]],HakupäiväJaAika,0),3),\"\")","v":""},null,null,{"$f":"IFERROR(INDEX(TapahtumienAjoitus[],MATCH($H$18&\"|\"&ROW(A5),TapahtumienAjoitus[YKSILÖIVÄ ARVO (LASKETTU)],0),2),\"\")","v":""},{"$f":"IFERROR(INDEX(TapahtumienAjoitus[],MATCH($H$18&\"|\"&ROW(A5),TapahtumienAjoitus[YKSILÖIVÄ ARVO (LASKETTU)],0),3),\"\")","v":""}]
[{"$nulls":4},{"$f":"Aikavälit!E19","v":"10:00:00"},{"$f":"IFERROR(INDEX(TapahtumienAjoitus[],MATCH(DATEVALUE(PäivämääränArvo)&PäivittäinenAikataulu[[#This Row],[Aika]],HakupäiväJaAika,0),3),\"\")","v":"Tauko"},null,null,{"$f":"IFERROR(INDEX(TapahtumienAjoitus[],MATCH($H$18&\"|\"&ROW(A6),TapahtumienAjoitus[YKSILÖIVÄ ARVO (LASKETTU)],0),2),\"\")","v":""},{"$f":"IFERROR(INDEX(TapahtumienAjoitus[],MATCH($H$18&\"|\"&ROW(A6),TapahtumienAjoitus[YKSILÖIVÄ ARVO (LASKETTU)],0),3),\"\")","v":""}]
[null,"Valitse aikavälien muokkaamista varten",null,null,{"$f":"Aikavälit!E20","v":"10:15:00"},{"$f":"IFERROR(INDEX(TapahtumienAjoitus[],MATCH(DATEVALUE(PäivämääränArvo)&PäivittäinenAikataulu[[#This Row],[Aika]],HakupäiväJaAika,0),3),\"\")","v":""},null,{"$f":"IFERROR(TEXT(DATEVALUE(PäivämääränArvo)+4,\"pppp\"),\"\")","v":"lauantai"},{"$f":"IFERROR(INDEX(TapahtumienAjoitus[],MATCH($H$24&\"|\"&ROW(A1),TapahtumienAjoitus[YKSILÖIVÄ ARVO (LASKETTU)],0),2),\"\")","v":""},{"$f":"IFERROR(INDEX(TapahtumienAjoitus[],MATCH($H$24&\"|\"&ROW(A1),TapahtumienAjoitus[YKSILÖIVÄ ARVO (LASKETTU)],0),3),\"\")","v":""}]
[{"$nulls":4},{"$f":"Aikavälit!E21","v":"10:30:00"},{"$f":"IFERROR(INDEX(TapahtumienAjoitus[],MATCH(DATEVALUE(PäivämääränArvo)&PäivittäinenAikataulu[[#This Row],[Aika]],HakupäiväJaAika,0),3),\"\")","v":""},null,{"$f":"IFERROR(TEXT(DATEVALUE(PäivämääränArvo)+4,\"p\"),\"\")","v":"25"},{"$f":"IFERROR(INDEX(TapahtumienAjoitus[],MATCH($H$24&\"|\"&ROW(A2),TapahtumienAjoitus[YKSILÖIVÄ ARVO (LASKETTU)],0),2),\"\")","v":""},{"$f":"IFERROR(INDEX(TapahtumienAjoitus[],MATCH($H$24&\"|\"&ROW(A2),TapahtumienAjoitus[YKSILÖIVÄ ARVO (LASKETTU)],0),3),\"\")","v":""}]
[null,"Valitse uuden tapahtuman lisäämistä varten",null,null,{"$f":"Aikavälit!E22","v":"10:45:00"},{"$f":"IFERROR(INDEX(TapahtumienAjoitus[],MATCH(DATEVALUE(PäivämääränArvo)&PäivittäinenAikataulu[[#This Row],[Aika]],HakupäiväJaAika,0),3),\"\")","v":""},null,null,{"$f":"IFERROR(INDEX(TapahtumienAjoitus[],MATCH($H$24&\"|\"&ROW(A3),TapahtumienAjoitus[YKSILÖIVÄ ARVO (LASKETTU)],0),2),\"\")","v":""},{"$f":"IFERROR(INDEX(TapahtumienAjoitus[],MATCH($H$24&\"|\"&ROW(A3),TapahtumienAjoitus[YKSILÖIVÄ ARVO (LASKETTU)],0),3),\"\")","v":""}]
[{"$nulls":4},{"$f":"Aikavälit!E23","v":"11:00:00"},{"$f":"IFERROR(INDEX(TapahtumienAjoitus[],MATCH(DATEVALUE(PäivämääränArvo)&PäivittäinenAikataulu[[#This Row],[Aika]],HakupäiväJaAika,0),3),\"\")","v":""},null,{"$f":"IFERROR(PäivämääränArvo+4,\"\")","v":"2022-06-25"},{"$f":"IFERROR(INDEX(TapahtumienAjoitus[],MATCH($H$24&\"|\"&ROW(A4),TapahtumienAjoitus[YKSILÖIVÄ ARVO (LASKETTU)],0),2),\"\")","v":""},{"$f":"IFERROR(INDEX(TapahtumienAjoitus[],MATCH($H$24&\"|\"&ROW(A4),TapahtumienAjoitus[YKSILÖIVÄ ARVO (LASKETTU)],0),3),\"\")","v":""}]
[null,"KOROSTA AIKATAULUSSA:",null,null,{"$f":"Aikavälit!E24","v":"11:15:00"},{"$f":"IFERROR(INDEX(TapahtumienAjoitus[],MATCH(DATEVALUE(PäivämääränArvo)&PäivittäinenAikataulu[[#This Row],[Aika]],HakupäiväJaAika,0),3),\"\")","v":""},null,null,{"$f":"IFERROR(INDEX(TapahtumienAjoitus[],MATCH($H$24&\"|\"&ROW(A5),TapahtumienAjoitus[YKSILÖIVÄ ARVO (LASKETTU)],0),2),\"\")","v":""},{"$f":"IFERROR(INDEX(TapahtumienAjoitus[],MATCH($H$24&\"|\"&ROW(A5),TapahtumienAjoitus[YKSILÖIVÄ ARVO (LASKETTU)],0),3),\"\")","v":""}]
[null,"Tauko",null,null,{"$f":"Aikavälit!E25","v":"11:30:00"},{"$f":"IFERROR(INDEX(TapahtumienAjoitus[],MATCH(DATEVALUE(PäivämääränArvo)&PäivittäinenAikataulu[[#This Row],[Aika]],HakupäiväJaAika,0),3),\"\")","v":""},null,{"$f":"IFERROR(TEXT(DATEVALUE(PäivämääränArvo)+5,\"pppp\"),\"\")","v":"sunnuntai"},{"$f":"IFERROR(INDEX(TapahtumienAjoitus[],MATCH($H$29&\"|\"&ROW(A1),TapahtumienAjoitus[YKSILÖIVÄ ARVO (LASKETTU)],0),2),\"\")","v":""},{"$f":"IFERROR(INDEX(TapahtumienAjoitus[],MATCH($H$29&\"|\"&ROW(A1),TapahtumienAjoitus[YKSILÖIVÄ ARVO (LASKETTU)],0),3),\"\")","v":""}]
[{"$nulls":4},{"$f":"Aikavälit!E26","v":"11:45:00"},{"$f":"IFERROR(INDEX(TapahtumienAjoitus[],MATCH(DATEVALUE(PäivämääränArvo)&PäivittäinenAikataulu[[#This Row],[Aika]],HakupäiväJaAika,0),3),\"\")","v":""},null,{"$f":"IFERROR(TEXT(DATEVALUE(PäivämääränArvo)+5,\"p\"),\"\")","v":"26"},{"$f":"IFERROR(INDEX(TapahtumienAjoitus[],MATCH($H$29&\"|\"&ROW(A2),TapahtumienAjoitus[YKSILÖIVÄ ARVO (LASKETTU)],0),2),\"\")","v":""},{"$f":"IFERROR(INDEX(TapahtumienAjoitus[],MATCH($H$29&\"|\"&ROW(A2),TapahtumienAjoitus[YKSILÖIVÄ ARVO (LASKETTU)],0),3),\"\")","v":""}]
[{"$nulls":4},{"$f":"Aikavälit!E27","v":"12:00:00"},{"$f":"IFERROR(INDEX(TapahtumienAjoitus[],MATCH(DATEVALUE(PäivämääränArvo)&PäivittäinenAikataulu[[#This Row],[Aika]],HakupäiväJaAika,0),3),\"\")","v":"Lounas"},null,null,{"$f":"IFERROR(INDEX(TapahtumienAjoitus[],MATCH($H$29&\"|\"&ROW(A3),TapahtumienAjoitus[YKSILÖIVÄ ARVO (LASKETTU)],0),2),\"\")","v":""},{"$f":"IFERROR(INDEX(TapahtumienAjoitus[],MATCH($H$29&\"|\"&ROW(A3),TapahtumienAjoitus[YKSILÖIVÄ ARVO (LASKETTU)],0),3),\"\")","v":""}]
[{"$nulls":4},{"$f":"Aikavälit!E28","v":"12:15:00"},{"$f":"IFERROR(INDEX(TapahtumienAjoitus[],MATCH(DATEVALUE(PäivämääränArvo)&PäivittäinenAikataulu[[#This Row],[Aika]],HakupäiväJaAika,0),3),\"\")","v":""},null,{"$f":"IFERROR(PäivämääränArvo+5,\"\")","v":"2022-06-26"},{"$f":"IFERROR(INDEX(TapahtumienAjoitus[],MATCH($H$29&\"|\"&ROW(A4),TapahtumienAjoitus[YKSILÖIVÄ ARVO (LASKETTU)],0),2),\"\")","v":""},{"$f":"IFERROR(INDEX(TapahtumienAjoitus[],MATCH($H$29&\"|\"&ROW(A4),TapahtumienAjoitus[YKSILÖIVÄ ARVO (LASKETTU)],0),3),\"\")","v":""}]
[{"$nulls":4},{"$f":"Aikavälit!E29","v":"12:30:00"},{"$f":"IFERROR(INDEX(TapahtumienAjoitus[],MATCH(DATEVALUE(PäivämääränArvo)&PäivittäinenAikataulu[[#This Row],[Aika]],HakupäiväJaAika,0),3),\"\")","v":""},null,null,{"$f":"IFERROR(INDEX(TapahtumienAjoitus[],MATCH($H$29&\"|\"&ROW(A5),TapahtumienAjoitus[YKSILÖIVÄ ARVO (LASKETTU)],0),2),\"\")","v":""},{"$f":"IFERROR(INDEX(TapahtumienAjoitus[],MATCH($H$29&\"|\"&ROW(A5),TapahtumienAjoitus[YKSILÖIVÄ ARVO (LASKETTU)],0),3),\"\")","v":""}]
[{"$nulls":4},{"$f":"Aikavälit!E30","v":"12:45:00"},{"$f":"IFERROR(INDEX(TapahtumienAjoitus[],MATCH(DATEVALUE(PäivämääränArvo)&PäivittäinenAikataulu[[#This Row],[Aika]],HakupäiväJaAika,0),3),\"\")","v":""},null,{"$f":"IFERROR(TEXT(DATEVALUE(PäivämääränArvo)+6,\"pppp\"),\"\")","v":"maanantai"},{"$f":"IFERROR(INDEX(TapahtumienAjoitus[],MATCH($H$34&\"|\"&ROW(A1),TapahtumienAjoitus[YKSILÖIVÄ ARVO (LASKETTU)],0),2),\"\")","v":""},{"$f":"IFERROR(INDEX(TapahtumienAjoitus[],MATCH($H$34&\"|\"&ROW(A1),TapahtumienAjoitus[YKSILÖIVÄ ARVO (LASKETTU)],0),3),\"\")","v":""}]
[{"$nulls":4},{"$f":"Aikavälit!E31","v":"13:00:00"},{"$f":"IFERROR(INDEX(TapahtumienAjoitus[],MATCH(DATEVALUE(PäivämääränArvo)&PäivittäinenAikataulu[[#This Row],[Aika]],HakupäiväJaAika,0),3),\"\")","v":""},null,{"$f":"IFERROR(TEXT(DATEVALUE(PäivämääränArvo)+6,\"p\"),\"\")","v":"27"},{"$f":"IFERROR(INDEX(TapahtumienAjoitus[],MATCH($H$34&\"|\"&ROW(A2),TapahtumienAjoitus[YKSILÖIVÄ ARVO (LASKETTU)],0),2),\"\")","v":""},{"$f":"IFERROR(INDEX(TapahtumienAjoitus[],MATCH($H$34&\"|\"&ROW(A2),TapahtumienAjoitus[YKSILÖIVÄ ARVO (LASKETTU)],0),3),\"\")","v":""}]
[{"$nulls":4},{"$f":"Aikavälit!E32","v":"13:15:00"},{"$f":"IFERROR(INDEX(TapahtumienAjoitus[],MATCH(DATEVALUE(PäivämääränArvo)&PäivittäinenAikataulu[[#This Row],[Aika]],HakupäiväJaAika,0),3),\"\")","v":""},null,null,{"$f":"IFERROR(INDEX(TapahtumienAjoitus[],MATCH($H$34&\"|\"&ROW(A3),TapahtumienAjoitus[YKSILÖIVÄ ARVO (LASKETTU)],0),2),\"\")","v":""},{"$f":"IFERROR(INDEX(TapahtumienAjoitus[],MATCH($H$34&\"|\"&ROW(A3),TapahtumienAjoitus[YKSILÖIVÄ ARVO (LASKETTU)],0),3),\"\")","v":""}]
[{"$nulls":4},{"$f":"Aikavälit!E33","v":"13:30:00"},{"$f":"IFERROR(INDEX(TapahtumienAjoitus[],MATCH(DATEVALUE(PäivämääränArvo)&PäivittäinenAikataulu[[#This Row],[Aika]],HakupäiväJaAika,0),3),\"\")","v":"Soita yritykseen"},null,{"$f":"IFERROR(PäivämääränArvo+6,\"\")","v":"2022-06-27"},{"$f":"IFERROR(INDEX(TapahtumienAjoitus[],MATCH($H$34&\"|\"&ROW(A4),TapahtumienAjoitus[YKSILÖIVÄ ARVO (LASKETTU)],0),2),\"\")","v":""},{"$f":"IFERROR(INDEX(TapahtumienAjoitus[],MATCH($H$34&\"|\"&ROW(A4),TapahtumienAjoitus[YKSILÖIVÄ ARVO (LASKETTU)],0),3),\"\")","v":""}]
[{"$nulls":4},{"$f":"Aikavälit!E34","v":"13:45:00"},{"$f":"IFERROR(INDEX(TapahtumienAjoitus[],MATCH(DATEVALUE(PäivämääränArvo)&PäivittäinenAikataulu[[#This Row],[Aika]],HakupäiväJaAika,0),3),\"\")","v":""},null,null,{"$f":"IFERROR(INDEX(TapahtumienAjoitus[],MATCH($H$34&\"|\"&ROW(A5),TapahtumienAjoitus[YKSILÖIVÄ ARVO (LASKETTU)],0),2),\"\")","v":""},{"$f":"IFERROR(INDEX(TapahtumienAjoitus[],MATCH($H$34&\"|\"&ROW(A5),TapahtumienAjoitus[YKSILÖIVÄ ARVO (LASKETTU)],0),3),\"\")","v":""}]
[{"$nulls":4},{"$f":"Aikavälit!E35","v":"14:00:00"},{"$f":"IFERROR(INDEX(TapahtumienAjoitus[],MATCH(DATEVALUE(PäivämääränArvo)&PäivittäinenAikataulu[[#This Row],[Aika]],HakupäiväJaAika,0),3),\"\")","v":""}]
[{"$nulls":4},{"$f":"Aikavälit!E36","v":"14:15:00"},{"$f":"IFERROR(INDEX(TapahtumienAjoitus[],MATCH(DATEVALUE(PäivämääränArvo)&PäivittäinenAikataulu[[#This Row],[Aika]],HakupäiväJaAika,0),3),\"\")","v":""}]
[{"$nulls":4},{"$f":"Aikavälit!E37","v":"14:30:00"},{"$f":"IFERROR(INDEX(TapahtumienAjoitus[],MATCH(DATEVALUE(PäivämääränArvo)&PäivittäinenAikataulu[[#This Row],[Aika]],HakupäiväJaAika,0),3),\"\")","v":""}]
[{"$nulls":4},{"$f":"Aikavälit!E38","v":"14:45:00"},{"$f":"IFERROR(INDEX(TapahtumienAjoitus[],MATCH(DATEVALUE(PäivämääränArvo)&PäivittäinenAikataulu[[#This Row],[Aika]],HakupäiväJaAika,0),3),\"\")","v":""}]
[{"$nulls":4},{"$f":"Aikavälit!E39","v":"15:00:00"},{"$f":"IFERROR(INDEX(TapahtumienAjoitus[],MATCH(DATEVALUE(PäivämääränArvo)&PäivittäinenAikataulu[[#This Row],[Aika]],HakupäiväJaAika,0),3),\"\")","v":"Tauko"}]
[{"$nulls":4},{"$f":"Aikavälit!E40","v":"15:15:00"},{"$f":"IFERROR(INDEX(TapahtumienAjoitus[],MATCH(DATEVALUE(PäivämääränArvo)&PäivittäinenAikataulu[[#This Row],[Aika]],HakupäiväJaAika,0),3),\"\")","v":""}]
[{"$nulls":4},{"$f":"Aikavälit!E41","v":"15:30:00"},{"$f":"IFERROR(INDEX(TapahtumienAjoitus[],MATCH(DATEVALUE(PäivämääränArvo)&PäivittäinenAikataulu[[#This Row],[Aika]],HakupäiväJaAika,0),3),\"\")","v":""}]
[{"$nulls":4},{"$f":"Aikavälit!E42","v":"15:45:00"},{"$f":"IFERROR(INDEX(TapahtumienAjoitus[],MATCH(DATEVALUE(PäivämääränArvo)&PäivittäinenAikataulu[[#This Row],[Aika]],HakupäiväJaAika,0),3),\"\")","v":""}]
[{"$nulls":4},{"$f":"Aikavälit!E43","v":"16:00:00"},{"$f":"IFERROR(INDEX(TapahtumienAjoitus[],MATCH(DATEVALUE(PäivämääränArvo)&PäivittäinenAikataulu[[#This Row],[Aika]],HakupäiväJaAika,0),3),\"\")","v":""}]
[{"$nulls":4},{"$f":"Aikavälit!E44","v":"16:15:00"},{"$f":"IFERROR(INDEX(TapahtumienAjoitus[],MATCH(DATEVALUE(PäivämääränArvo)&PäivittäinenAikataulu[[#This Row],[Aika]],HakupäiväJaAika,0),3),\"\")","v":""}]
[{"$nulls":4},{"$f":"Aikavälit!E45","v":"16:30:00"},{"$f":"IFERROR(INDEX(TapahtumienAjoitus[],MATCH(DATEVALUE(PäivämääränArvo)&PäivittäinenAikataulu[[#This Row],[Aika]],HakupäiväJaAika,0),3),\"\")","v":""}]
[{"$nulls":4},{"$f":"Aikavälit!E46","v":"16:45:00"},{"$f":"IFERROR(INDEX(TapahtumienAjoitus[],MATCH(DATEVALUE(PäivämääränArvo)&PäivittäinenAikataulu[[#This Row],[Aika]],HakupäiväJaAika,0),3),\"\")","v":""}]
[{"$nulls":4},{"$f":"Aikavälit!E47","v":"17:00:00"},{"$f":"IFERROR(INDEX(TapahtumienAjoitus[],MATCH(DATEVALUE(PäivämääränArvo)&PäivittäinenAikataulu[[#This Row],[Aika]],HakupäiväJaAika,0),3),\"\")","v":"Kotiin"}]
[{"$nulls":4},{"$f":"Aikavälit!E48","v":"17:15:00"},{"$f":"IFERROR(INDEX(TapahtumienAjoitus[],MATCH(DATEVALUE(PäivämääränArvo)&PäivittäinenAikataulu[[#This Row],[Aika]],HakupäiväJaAika,0),3),\"\")","v":""}]
[{"$nulls":4},{"$f":"Aikavälit!E49","v":"17:30:00"},{"$f":"IFERROR(INDEX(TapahtumienAjoitus[],MATCH(DATEVALUE(PäivämääränArvo)&PäivittäinenAikataulu[[#This Row],[Aika]],HakupäiväJaAika,0),3),\"\")","v":""}]
[{"$nulls":4},{"$f":"Aikavälit!E50","v":"17:45:00"},{"$f":"IFERROR(INDEX(TapahtumienAjoitus[],MATCH(DATEVALUE(PäivämääränArvo)&PäivittäinenAikataulu[[#This Row],[Aika]],HakupäiväJaAika,0),3),\"\")","v":""}]
[{"$nulls":4},{"$f":"Aikavälit!E51","v":"18:00:00"},{"$f":"IFERROR(INDEX(TapahtumienAjoitus[],MATCH(DATEVALUE(PäivämääränArvo)&PäivittäinenAikataulu[[#This Row],[Aika]],HakupäiväJaAika,0),3),\"\")","v":"Jalkapalloharjoitukset"}]
[{"$nulls":4},{"$f":"Aikavälit!E52","v":"18:15:00"},{"$f":"IFERROR(INDEX(TapahtumienAjoitus[],MATCH(DATEVALUE(PäivämääränArvo)&PäivittäinenAikataulu[[#This Row],[Aika]],HakupäiväJaAika,0),3),\"\")","v":""}]
[{"$nulls":4},{"$f":"Aikavälit!E53","v":"18:30:00"},{"$f":"IFERROR(INDEX(TapahtumienAjoitus[],MATCH(DATEVALUE(PäivämääränArvo)&PäivittäinenAikataulu[[#This Row],[Aika]],HakupäiväJaAika,0),3),\"\")","v":""}]
[{"$nulls":4},{"$f":"Aikavälit!E54","v":"18:45:00"},{"$f":"IFERROR(INDEX(TapahtumienAjoitus[],MATCH(DATEVALUE(PäivämääränArvo)&PäivittäinenAikataulu[[#This Row],[Aika]],HakupäiväJaAika,0),3),\"\")","v":""}]
[{"$nulls":4},{"$f":"Aikavälit!E55","v":"19:00:00"},{"$f":"IFERROR(INDEX(TapahtumienAjoitus[],MATCH(DATEVALUE(PäivämääränArvo)&PäivittäinenAikataulu[[#This Row],[Aika]],HakupäiväJaAika,0),3),\"\")","v":""}]
[{"$nulls":4},{"$f":"Aikavälit!E56","v":"19:15:00"},{"$f":"IFERROR(INDEX(TapahtumienAjoitus[],MATCH(DATEVALUE(PäivämääränArvo)&PäivittäinenAikataulu[[#This Row],[Aika]],HakupäiväJaAika,0),3),\"\")","v":""}]
[{"$nulls":4},{"$f":"Aikavälit!E57","v":"19:30:00"},{"$f":"IFERROR(INDEX(TapahtumienAjoitus[],MATCH(DATEVALUE(PäivämääränArvo)&PäivittäinenAikataulu[[#This Row],[Aika]],HakupäiväJaAika,0),3),\"\")","v":""}]
[{"$nulls":4},{"$f":"Aikavälit!E58","v":"19:45:00"},{"$f":"IFERROR(INDEX(TapahtumienAjoitus[],MATCH(DATEVALUE(PäivämääränArvo)&PäivittäinenAikataulu[[#This Row],[Aika]],HakupäiväJaAika,0),3),\"\")","v":""}]
[{"$nulls":4},{"$f":"Aikavälit!E59","v":"20:00:00"},{"$f":"IFERROR(INDEX(TapahtumienAjoitus[],MATCH(DATEVALUE(PäivämääränArvo)&PäivittäinenAikataulu[[#This Row],[Aika]],HakupäiväJaAika,0),3),\"\")","v":""}]
[{"$nulls":4},{"$f":"Aikavälit!E60","v":"20:15:00"},{"$f":"IFERROR(INDEX(TapahtumienAjoitus[],MATCH(DATEVALUE(PäivämääränArvo)&PäivittäinenAikataulu[[#This Row],[Aika]],HakupäiväJaAika,0),3),\"\")","v":""}]
[{"$nulls":4},{"$f":"Aikavälit!E61","v":"20:30:00"},{"$f":"IFERROR(INDEX(TapahtumienAjoitus[],MATCH(DATEVALUE(PäivämääränArvo)&PäivittäinenAikataulu[[#This Row],[Aika]],HakupäiväJaAika,0),3),\"\")","v":""}]
[{"$nulls":4},{"$f":"Aikavälit!E62","v":"20:45:00"},{"$f":"IFERROR(INDEX(TapahtumienAjoitus[],MATCH(DATEVALUE(PäivämääränArvo)&PäivittäinenAikataulu[[#This Row],[Aika]],HakupäiväJaAika,0),3),\"\")","v":""}]
[{"$nulls":4},{"$f":"Aikavälit!E63","v":"21:00:00"},{"$f":"IFERROR(INDEX(TapahtumienAjoitus[],MATCH(DATEVALUE(PäivämääränArvo)&PäivittäinenAikataulu[[#This Row],[Aika]],HakupäiväJaAika,0),3),\"\")","v":""}]
[{"$nulls":4},{"$f":"Aikavälit!E64","v":""},{"$f":"IFERROR(INDEX(TapahtumienAjoitus[],MATCH(DATEVALUE(PäivämääränArvo)&PäivittäinenAikataulu[[#This Row],[Aika]],HakupäiväJaAika,0),3),\"\")","v":""}]
[{"$nulls":4},{"$f":"Aikavälit!E65","v":""},{"$f":"IFERROR(INDEX(TapahtumienAjoitus[],MATCH(DATEVALUE(PäivämääränArvo)&PäivittäinenAikataulu[[#This Row],[Aika]],HakupäiväJaAika,0),3),\"\")","v":""}]
[{"$nulls":4},{"$f":"Aikavälit!E66","v":""},{"$f":"IFERROR(INDEX(TapahtumienAjoitus[],MATCH(DATEVALUE(PäivämääränArvo)&PäivittäinenAikataulu[[#This Row],[Aika]],HakupäiväJaAika,0),3),\"\")","v":""}]
[{"$nulls":4},{"$f":"Aikavälit!E67","v":""},{"$f":"IFERROR(INDEX(TapahtumienAjoitus[],MATCH(DATEVALUE(PäivämääränArvo)&PäivittäinenAikataulu[[#This Row],[Aika]],HakupäiväJaAika,0),3),\"\")","v":""}]
[{"$nulls":4},{"$f":"Aikavälit!E68","v":""},{"$f":"IFERROR(INDEX(TapahtumienAjoitus[],MATCH(DATEVALUE(PäivämääränArvo)&PäivittäinenAikataulu[[#This Row],[Aika]],HakupäiväJaAika,0),3),\"\")","v":""}]
[{"$nulls":4},{"$f":"Aikavälit!E69","v":""},{"$f":"IFERROR(INDEX(TapahtumienAjoitus[],MATCH(DATEVALUE(PäivämääränArvo)&PäivittäinenAikataulu[[#This Row],[Aika]],HakupäiväJaAika,0),3),\"\")","v":""}]
[{"$nulls":4},{"$f":"Aikavälit!E70","v":""},{"$f":"IFERROR(INDEX(TapahtumienAjoitus[],MATCH(DATEVALUE(PäivämääränArvo)&PäivittäinenAikataulu[[#This Row],[Aika]],HakupäiväJaAika,0),3),\"\")","v":""}]
[{"$nulls":4},{"$f":"Aikavälit!E71","v":""},{"$f":"IFERROR(INDEX(TapahtumienAjoitus[],MATCH(DATEVALUE(PäivämääränArvo)&PäivittäinenAikataulu[[#This Row],[Aika]],HakupäiväJaAika,0),3),\"\")","v":""}]
[{"$nulls":4},{"$f":"Aikavälit!E72","v":""},{"$f":"IFERROR(INDEX(TapahtumienAjoitus[],MATCH(DATEVALUE(PäivämääränArvo)&PäivittäinenAikataulu[[#This Row],[Aika]],HakupäiväJaAika,0),3),\"\")","v":""}]
[{"$nulls":4},{"$f":"Aikavälit!E73","v":""},{"$f":"IFERROR(INDEX(TapahtumienAjoitus[],MATCH(DATEVALUE(PäivämääränArvo)&PäivittäinenAikataulu[[#This Row],[Aika]],HakupäiväJaAika,0),3),\"\")","v":""}]
[{"$nulls":4},{"$f":"Aikavälit!E74","v":""},{"$f":"IFERROR(INDEX(TapahtumienAjoitus[],MATCH(DATEVALUE(PäivämääränArvo)&PäivittäinenAikataulu[[#This Row],[Aika]],HakupäiväJaAika,0),3),\"\")","v":""}]
[{"$nulls":4},{"$f":"Aikavälit!E75","v":""},{"$f":"IFERROR(INDEX(TapahtumienAjoitus[],MATCH(DATEVALUE(PäivämääränArvo)&PäivittäinenAikataulu[[#This Row],[Aika]],HakupäiväJaAika,0),3),\"\")","v":""}]

{"sheet":"Tapahtumien ajoitus","index":1,"n_rows":15,"n_cols":8,"rows_kept":15,"merged":[[0,1,0,2],[1,1,4,2],[5,1,6,2],[7,1,7,2]]}
[null,"Tapahtumien ajoitus"]
[null,{"$f":"DAY(PäivämääränArvo)","v":21},null,null,"PÄIVÄMÄÄRÄ","AIKA","KUVAUS","YKSILÖIVÄ ARVO (LASKETTU)"]
[{"$nulls":4},{"$f":"TODAY()","v":"2022-06-21"},"06:00:00","Herätys",{"$f":"TapahtumienAjoitus[[#This Row],[PÄIVÄMÄÄRÄ]]&\"|\"&COUNTIF($E$3:E3,E3)","v":"44733|1"}]
[{"$nulls":4},{"$f":"TODAY()","v":"2022-06-21"},"06:30:00","Suihku",{"$f":"TapahtumienAjoitus[[#This Row],[PÄIVÄMÄÄRÄ]]&\"|\"&COUNTIF($E$3:E4,E4)","v":"44733|2"}]
[{"$nulls":4},"2022-06-21","07:30:00","Lähtö töihin",{"$f":"TapahtumienAjoitus[[#This Row],[PÄIVÄMÄÄRÄ]]&\"|\"&COUNTIF($E$3:E5,E5)","v":"44733|3"}]
[null,{"$f":"TEXT(PäivämääränArvo,\"pppp\")","v":"tiistai"},null,null,"2022-06-21","08:00:00","Vuoron alku",{"$f":"TapahtumienAjoitus[[#This Row],[PÄIVÄMÄÄRÄ]]&\"|\"&COUNTIF($E$3:E6,E6)","v":"44733|4"}]
[{"$nulls":4},"2022-06-21","10:00:00","Tauko",{"$f":"TapahtumienAjoitus[[#This Row],[PÄIVÄMÄÄRÄ]]&\"|\"&COUNTIF($E$3:E7,E7)","v":"44733|5"}]
[null,{"$f":"PäivämääränArvo","v":"21 KESÄKUU 2022"},null,null,"2022-06-21","12:00:00","Lounas",{"$f":"TapahtumienAjoitus[[#This Row],[PÄIVÄMÄÄRÄ]]&\"|\"&COUNTIF($E$3:E8,E8)","v":"44733|6"}]
[{"$nulls":4},"2022-06-21","13:00:00","Paluu töihin",{"$f":"TapahtumienAjoitus[[#This Row],[PÄIVÄMÄÄRÄ]]&\"|\"&COUNTIF($E$3:E9,E9)","v":"44733|7"}]
[null,"Valitse aikavälien muokkaamista varten",null,null,"2022-06-21","13:30:00","Soita yritykseen",{"$f":"TapahtumienAjoitus[[#This Row],[PÄIVÄMÄÄRÄ]]&\"|\"&COUNTIF($E$3:E10,E10)","v":"44733|8"}]
[{"$nulls":4},"2022-06-21","15:00:00","Tauko",{"$f":"TapahtumienAjoitus[[#This Row],[PÄIVÄMÄÄRÄ]]&\"|\"&COUNTIF($E$3:E11,E11)","v":"44733|9"}]
[null,"Valitse päivittäisen aikataulun näyttöä varten",null,null,"2022-06-21","17:00:00","Kotiin",{"$f":"TapahtumienAjoitus[[#This Row],[PÄIVÄMÄÄRÄ]]&\"|\"&COUNTIF($E$3:E12,E12)","v":"44733|10"}]
[{"$nulls":4},"2022-06-21","18:00:00","Jalkapalloharjoitukset",{"$f":"TapahtumienAjoitus[[#This Row],[PÄIVÄMÄÄRÄ]]&\"|\"&COUNTIF($E$3:E13,E13)","v":"44733|11"}]
[{"$nulls":4},{"$f":"TODAY()+1","v":"2022-06-22"},"06:30:00","Aamiainen",{"$f":"TapahtumienAjoitus[[#This Row],[PÄIVÄMÄÄRÄ]]&\"|\"&COUNTIF($E$3:E15,E14)","v":"44734|2"}]
[{"$nulls":4},{"$f":"TODAY()+1","v":"2022-06-22"},"07:30:00","Lähtö töihin",{"$f":"TapahtumienAjoitus[[#This Row],[PÄIVÄMÄÄRÄ]]&\"|\"&COUNTIF($E$3:E15,E15)","v":"44734|2"}]

{"sheet":"Aikavälit","index":2,"n_rows":75,"n_cols":5,"rows_kept":75,"merged":[[0,1,0,2],[1,1,1,2],[9,1,9,2]]}
[null,"Aikavälit"]
[null,"MUOKKAA AIKATAULUA",null,null,"Aika"]
[{"$nulls":4},{"$f":"Alkamisaika","v":"06:00:00"}]
[null,"Alkamisaika","06:00:00",null,{"$f":"IFERROR(IF($E3+Lisäys>Päättymisaika,\"\",$E3+Lisäys),\"\")","v":"06:15:00"}]
[{"$nulls":4},{"$f":"IFERROR(IF($E4+Lisäys>Päättymisaika,\"\",$E4+Lisäys),\"\")","v":"06:30:00"}]
[null,"Aikaväli","15 MIN",null,"06:45:00"]
[{"$nulls":4},"07:00:00"]
[null,"Päättymisaika","21:00:00",null,"07:15:00"]
[{"$nulls":4},"07:30:00"]
[null,"NÄYTÄ AIKATAULU",null,null,"07:45:00"]
[{"$nulls":4},"08:00:00"]
[null,"Valitse päivittäisen aikataulun näyttöä varten",null,null,"08:15:00"]
[{"$nulls":4},"08:30:00"]
[null,"Valitse uuden tapahtuman lisäämistä varten",null,null,"08:45:00"]
[{"$nulls":4},"09:00:00"]
[{"$nulls":4},"09:15:00"]
[{"$nulls":4},"09:30:00"]
[{"$nulls":4},"09:45:00"]
[{"$nulls":4},"10:00:00"]
[{"$nulls":4},"10:15:00"]
[{"$nulls":4},"10:30:00"]
[{"$nulls":4},"10:45:00"]
[{"$nulls":4},"11:00:00"]
[{"$nulls":4},"11:15:00"]
[{"$nulls":4},"11:30:00"]
[{"$nulls":4},"11:45:00"]
[{"$nulls":4},"12:00:00"]
[{"$nulls":4},"12:15:00"]
[{"$nulls":4},"12:30:00"]
[{"$nulls":4},"12:45:00"]
[{"$nulls":4},"13:00:00"]
[{"$nulls":4},"13:15:00"]
[{"$nulls":4},"13:30:00"]
[{"$nulls":4},"13:45:00"]
[{"$nulls":4},"14:00:00"]
[{"$nulls":4},{"$f":"IFERROR(IF($E35+Lisäys>Päättymisaika,\"\",$E35+Lisäys),\"\")","v":"14:15:00"}]
[{"$nulls":4},"14:30:00"]
[{"$nulls":4},"14:45:00"]
[{"$nulls":4},"15:00:00"]
[{"$nulls":4},"15:15:00"]
[{"$nulls":4},"15:30:00"]
[{"$nulls":4},"15:45:00"]
[{"$nulls":4},"16:00:00"]
[{"$nulls":4},"16:15:00"]
[{"$nulls":4},"16:30:00"]
[{"$nulls":4},"16:45:00"]
[{"$nulls":4},"17:00:00"]
[{"$nulls":4},"17:15:00"]
[{"$nulls":4},"17:30:00"]
[{"$nulls":4},"17:45:00"]
[{"$nulls":4},"18:00:00"]
[{"$nulls":4},"18:15:00"]
[{"$nulls":4},"18:30:00"]
[{"$nulls":4},"18:45:00"]
[{"$nulls":4},"19:00:00"]
[{"$nulls":4},"19:15:00"]
[{"$nulls":4},"19:30:00"]
[{"$nulls":4},"19:45:00"]
[{"$nulls":4},"20:00:00"]
[{"$nulls":4},"20:15:00"]
[{"$nulls":4},"20:30:00"]
[{"$nulls":4},"20:45:00"]
[{"$nulls":4},"21:00:00"]
[{"$nulls":4},""]
[{"$nulls":4},""]
[{"$nulls":4},""]
[{"$nulls":4},""]
[{"$nulls":4},{"$f":"IFERROR(IF($E67+Lisäys>Päättymisaika,\"\",$E67+Lisäys),\"\")","v":""}]
[{"$nulls":4},""]
[{"$nulls":4},""]
[{"$nulls":4},""]
[{"$nulls":4},""]
[{"$nulls":4},""]
[{"$nulls":4},""]
[{"$nulls":4},""]